fUST/lending_fUST_20250729
["ID","MTS","AMOUNT","RATE_DAILY","PERIOD"]
[375795104,1753749058682,-460.0,0.00021917,2]
[375795106,1753749058694,-761.04,0.00021917,2]
[375795108,1753749058703,-460.0,0.00021917,2]
[375795110,1753749058713,-552.9,0.00021917,2]
[375795112,1753749058723,-460.0,0.00021917,2]
[375795114,1753749058732,-511.35,0.00021917,2]
[375795116,1753749058742,-232.047717,0.00021917,2]
[375795118,1753749058752,-460.0,0.00021917,2]
[375795120,1753749058761,-1539.51,0.00021917,2]
[375795122,1753749058771,-232.047717,0.00021917,2]
[375795124,1753749058780,-460.0,0.00021917,2]
[375795126,1753749058790,-460.0,0.00021917,2]
[375795128,1753749058800,-460.0,0.00021917,2]
[375795130,1753749058810,-546.86,0.00021917,2]
[375795132,1753749058824,-1287.37,0.00021917,2]
[375795134,1753749058834,-564.43,0.00021917,2]
[375795136,1753749058843,-996.48,0.00021917,2]
[375795138,1753749058853,-509.59,0.00021917,2]
[375795140,1753749058863,-460.0,0.00021917,2]
[375795141,1753749058872,-463.39,0.00021917,2]
[375795143,1753749058881,-797.7,0.00021917,2]
[375795144,1753749058891,-460.0,0.00021917,2]
[375795146,1753749058901,-192.31603521,0.00021917,2]
[375795148,1753749058911,-200.680604,0.00021917,2]
[375795150,1753749058921,-460.0,0.00021917,2]
[375795152,1753749058931,-492.3,0.00021917,2]
[375795154,1753749058942,-460.0,0.00021917,2]
[375795156,1753749058951,-460.0,0.00021917,2]
[375795158,1753749058961,-460.0,0.00021917,2]
[375795160,1753749058970,-1211.72,0.00021917,2]
[375795162,1753749058980,-460.0,0.00021917,2]
[375795163,1753749058990,-4726.56,0.00021917,2]
[375795165,1753749058999,-460.0,0.00021917,2]
[375795167,1753749059008,-502.36,0.00021917,2]
[375795169,1753749059017,-586.6,0.00021917,2]
[375795171,1753749059027,-574.57,0.00021917,2]
[375795173,1753749059036,-548.16,0.00021917,2]
[375795175,1753749059046,-1800.69,0.00021917,2]
[375795177,1753749059055,-509.81,0.00021917,2]
[375795179,1753749059065,-460.0,0.00021917,2]
[375795181,1753749059074,-1359.25,0.00021917,2]
[375795183,1753749059084,-490.06,0.00021917,2]
[375795184,1753749059094,-460.0,0.00021917,2]
[375795186,1753749059103,-460.0,0.00021917,2]
[375795188,1753749059113,-1792.58,0.00021917,2]
[375795190,1753749059122,-500.0,0.00021918,2]
[375795192,1753749059131,-285.165362,0.00021918,2]
[375795194,1753749059141,-285.165362,0.00021918,2]
[375795196,1753749059150,-285.165362,0.00021918,2]
[375795197,1753749059160,-285.165362,0.00021918,2]
[375795199,1753749059169,-285.165362,0.00021918,2]
[375795201,1753749059178,-285.165362,0.00021918,2]
[375795203,1753749059188,-300.0,0.00021918,2]
[375795205,1753749059197,-150.0,0.00021918,2]
[375795207,1753749059207,-778.98972925,0.00021964,2]
[375795209,1753749059216,-594.81,0.00022,7]
[375795211,1753749059226,-1442.16,0.00022,7]
[375795213,1753749059236,-5914.41,0.00022,7]
[375795215,1753749059245,-383.0,0.00022018,2]
[375795217,1753749059254,-383.0,0.00022041,2]
[375795218,1753749059264,-196.75698771,0.00022168,2]
[375795220,1753749059273,-500.0,0.0002219,2]
[375795222,1753749059283,-151.0,0.00022191,7]
[375795224,1753749059292,-151.0,0.00022191,7]
[375795226,1753749059302,-151.0,0.00022191,7]
[375795228,1753749059311,-460.0,0.00022191,2]
[375795230,1753749059320,-460.0,0.00022191,2]
[375795232,1753749059330,-571.78,0.00022191,2]
[375795234,1753749059340,-536.76,0.00022191,2]
[375795236,1753749059350,-460.0,0.00022191,2]
[375795238,1753749059360,-460.0,0.00022191,2]
[375795239,1753749059369,-460.0,0.00022191,2]
[375795241,1753749059379,-460.0,0.00022191,2]
[375795243,1753749059388,-573.23,0.00022191,2]
[375795245,1753749059398,-460.0,0.00022191,2]
[375795247,1753749059407,-4491.51,0.00022191,2]
[375795249,1753749059417,-460.0,0.00022191,2]
[375795251,1753749059426,-460.0,0.00022191,2]
[375795253,1753749059436,-579.93,0.00022191,2]
[375795255,1753749059446,-603.52,0.00022191,2]
[375795257,1753749059455,-460.0,0.00022191,2]
[375795259,1753749059465,-1616.26,0.00022191,2]
[375795260,1753749059474,-460.0,0.00022191,2]
[375795262,1753749059483,-460.0,0.00022191,2]
[375795264,1753749059492,-460.0,0.00022191,2]
[375795266,1753749059501,-503.97,0.00022191,2]
[375795268,1753749059511,-460.0,0.00022191,2]
[375795270,1753749059521,-1815.21,0.00022191,2]
[375795272,1753749059530,-1896.92,0.00022191,2]
[375795274,1753749059540,-1344.16,0.00022191,2]
[375795276,1753749059550,-612.46,0.00022191,2]
[375795278,1753749059559,-497.08,0.00022191,2]
[375795280,1753749059568,-460.0,0.00022191,2]
[375795281,1753749059577,-761.04,0.00022191,2]
[375795283,1753749059588,-460.0,0.00022191,2]
[375795285,1753749059597,-552.9,0.00022191,2]
[375795287,1753749059606,-460.0,0.00022191,2]
[375795289,1753749059616,-511.35,0.00022191,2]
[375795291,1753749059626,-460.0,0.00022191,2]
[375795293,1753749059636,-1539.51,0.00022191,2]
[375795294,1753749059645,-460.0,0.00022191,2]
[375795296,1753749059654,-460.0,0.00022191,2]
[375795298,1753749059664,-460.0,0.00022191,2]
[375795300,1753749059673,-546.86,0.00022191,2]
[375795302,1753749059682,-1287.37,0.00022191,2]
[375795304,1753749059693,-564.43,0.00022191,2]
[375795306,1753749059703,-996.48,0.00022191,2]
[375795308,1753749059712,-509.59,0.00022191,2]
[375795310,1753749059721,-464.2,0.00022191,2]
[375795312,1753749059731,-463.39,0.00022191,2]
[375795313,1753749059740,-797.7,0.00022191,2]
[375795315,1753749059750,-460.0,0.00022191,2]
[375795317,1753749059760,-460.0,0.00022191,2]
[375795319,1753749059769,-492.3,0.00022191,2]
[375795321,1753749059778,-460.0,0.00022191,2]
[375795323,1753749059787,-460.0,0.00022191,2]
[375795325,1753749059797,-460.0,0.00022191,2]
[375795327,1753749059808,-1211.72,0.00022191,2]
[375795329,1753749059823,-460.0,0.00022191,2]
[375795331,1753749059833,-4726.56,0.00022191,2]
[375795333,1753749059843,-502.36,0.00022191,2]
[375795335,1753749059852,-460.0,0.00022191,2]
[375795337,1753749059862,-586.6,0.00022191,2]
[375795338,1753749059872,-574.57,0.00022191,2]
[375795340,1753749059881,-1800.69,0.00022191,2]
[375795342,1753749059891,-509.81,0.00022191,2]
[375795344,1753749059901,-460.0,0.00022191,2]
[375795346,1753749059910,-1359.25,0.00022191,2]
[375795348,1753749059920,-490.06,0.00022191,2]
[375795350,1753749059930,-460.0,0.00022191,2]
[375795352,1753749059940,-460.0,0.00022191,2]
[375795354,1753749059949,-1792.58,0.00022191,2]
[375795356,1753749059959,-500.0,0.00022192,2]
[375795357,1753749059968,-383.0,0.00022235,2]
[375795359,1753749059978,-383.0,0.00022237,2]
[375795361,1753749059988,-427.1,0.00022255,4]
[375795363,1753749059997,-2021.76853654,0.00022277,2]
[375795365,1753749060007,-383.0,0.00022298,2]
[375795367,1753749060017,-151.0,0.00022351,7]
[375795368,1753749060026,-151.0,0.00022351,7]
[375795370,1753749060036,-163.747152,0.00022351,7]
[375795372,1753749060045,-163.747152,0.00022351,7]
[375795374,1753749060055,-151.0,0.00022351,7]
[375795376,1753749060065,-312.16666667,0.00022351,7]
[375795378,1753749060075,-151.0,0.00022351,7]
[375795380,1753749060085,-151.0,0.00022351,7]
[375795382,1753749060095,-273.472572,0.00022351,7]
[375795384,1753749060105,-273.472572,0.00022351,7]
[375795386,1753749060116,-151.0,0.00022351,7]
[375795388,1753749060126,-676.424315,0.00022351,7]
[375795389,1753749060136,-676.424315,0.00022351,7]
[375795391,1753749060146,-214.87999826,0.0002236,7]
[375795393,1753749060156,-12634.73134317,0.0002236,7]
[375795395,1753749060167,-210.378976,0.0002236,7]
[375795397,1753749060177,-210.378976,0.0002236,7]
[375795399,1753749060187,-383.0,0.00022377,2]
[375795401,1753749060198,-222.35727045,0.00022388,2]
[375795403,1753749060207,-724.0,0.00022415,2]
[375795405,1753749060216,-383.0,0.00022424,2]
[375795407,1753749060225,-383.0,0.00022451,2]
[375795409,1753749060235,-151.0,0.00022465,7]
[375795411,1753749060245,-151.0,0.00022465,7]
[375795413,1753749060254,-151.0,0.00022465,7]
[375795415,1753749060265,-151.0,0.00022465,7]
[375795416,1753749060274,-460.0,0.00022465,2]
[375795418,1753749060284,-2748.40502744,0.00022465,2]
[375795420,1753749060293,-571.78,0.00022465,2]
[375795422,1753749060305,-536.76,0.00022465,2]
[375795424,1753749060314,-151.0,0.00022465,7]
[375795426,1753749060324,-241.05363665,0.00022465,2]
[375795428,1753749060334,-151.0,0.00022465,7]
[375795430,1753749060345,-460.0,0.00022465,2]
[375795432,1753749060354,-460.0,0.00022465,2]
[375795434,1753749060364,-573.23,0.00022465,2]
[375795436,1753749060373,-460.0,0.00022465,2]
[375795438,1753749060383,-151.0,0.00022465,7]
[375795440,1753749060392,-151.0,0.00022465,7]
[375795442,1753749060402,-151.0,0.00022465,7]
[375795444,1753749060411,-4491.51,0.00022465,2]
[375795445,1753749060420,-460.0,0.00022465,2]
[375795447,1753749060429,-460.0,0.00022465,2]
[375795449,1753749060440,-579.93,0.00022465,2]
[375795451,1753749060449,-603.52,0.00022465,2]
[375795453,1753749060459,-460.0,0.00022465,2]
[375795455,1753749060469,-435.800487,0.00022465,7]
[375795457,1753749060478,-1616.26,0.00022465,2]
[375795458,1753749060487,-435.800487,0.00022465,7]
[375795460,1753749060496,-460.0,0.00022465,2]
[375795462,1753749060506,-586.19,0.00022465,2]
[375795464,1753749060517,-460.0,0.00022465,2]
[375795466,1753749060526,-503.97,0.00022465,2]
[375795468,1753749060536,-460.0,0.00022465,2]
[375795470,1753749060546,-1896.92,0.00022465,2]
[375795472,1753749060556,-1815.21,0.00022465,2]
[375795474,1753749060566,-1344.16,0.00022465,2]
[375795476,1753749060576,-612.46,0.00022465,2]
[375795478,1753749060585,-497.08,0.00022465,2]
[375795480,1753749060595,-460.0,0.00022465,2]
[375795482,1753749060606,-761.04,0.00022465,2]
[375795484,1753749060616,-460.0,0.00022465,2]
[375795497,1753749060753,-552.9,0.00022465,2]
[375795499,1753749060764,-460.0,0.00022465,2]
[375795501,1753749060774,-511.35,0.00022465,2]
[375795503,1753749060783,-232.047717,0.00022465,7]
[375795505,1753749060793,-460.0,0.00022465,2]
[375795507,1753749060803,-1539.51,0.00022465,2]
[375795509,1753749060816,-232.047717,0.00022465,7]
[375795511,1753749060825,-460.0,0.00022465,2]
[375795513,1753749060835,-460.0,0.00022465,2]
[375795515,1753749060844,-460.0,0.00022465,2]
[375795517,1753749060855,-546.86,0.00022465,2]
[375795519,1753749060864,-1287.37,0.00022465,2]
[375795521,1753749060875,-564.43,0.00022465,2]
[375795522,1753749060884,-996.48,0.00022465,2]
[375795523,1753749060895,-509.59,0.00022465,2]
[375795524,1753749060905,-463.39,0.00022465,2]
[375795525,1753749060914,-797.7,0.00022465,2]
[375795526,1753749060924,-460.0,0.00022465,2]
[375795527,1753749060934,-392.36,0.00022465,2]
[375795528,1753749060945,-492.3,0.00022465,2]
[375795529,1753749060955,-460.0,0.00022465,2]
[375795530,1753749060964,-460.0,0.00022465,2]
[375795531,1753749060974,-460.0,0.00022465,2]
[375795532,1753749060983,-1211.72,0.00022465,2]
[375795533,1753749060993,-460.0,0.00022465,2]
[375795534,1753749061002,-4726.56,0.00022465,2]
[375795535,1753749061011,-502.36,0.00022465,2]
[375795536,1753749061021,-530.29,0.00022465,2]
[375795537,1753749061030,-586.6,0.00022465,2]
[375795538,1753749061039,-574.57,0.00022465,2]
[375795540,1753749061048,-1800.69,0.00022465,2]
[375795542,1753749061057,-509.81,0.00022465,2]
[375795544,1753749061067,-470.81920337,0.00022465,2]
[375795546,1753749061076,-1359.25,0.00022465,2]
[375795548,1753749061086,-490.06,0.00022465,2]
[375795550,1753749061095,-460.0,0.00022465,2]
[375795552,1753749061105,-582.13,0.00022465,2]
[375795554,1753749061114,-1792.58,0.00022465,2]
[375795556,1753749061123,-500.0,0.00022466,2]
[375795558,1753749061133,-231.76193867,0.00022466,2]
[375795560,1753749061142,-383.0,0.00022477,2]
[375795562,1753749061151,-151.0,0.0002249,7]
[375795564,1753749061161,-151.0,0.0002249,7]
[375795566,1753749061171,-71837.15125626,0.0002249,7]
[375795568,1753749061180,-500.0,0.00022494,2]
[375795570,1753749061189,-724.0,0.00022511,2]
[375795572,1753749061199,-500.0,0.00022526,2]
[375795573,1753749061208,-246.40088443,0.000226,4]
[375795575,1753749061218,-174.134226,0.00022603,2]
[375795577,1753749061227,-427.1,0.00022707,5]
[375795579,1753749061236,-335.11028102,0.00022712,2]
[375795581,1753749061246,-173.71,0.00022725,2]
[375795583,1753749061255,-151.0,0.00022739,7]
[375795585,1753749061265,-163.747152,0.00022739,7]
[375795587,1753749061274,-163.747152,0.00022739,7]
[375795589,1753749061284,-151.0,0.00022739,7]
[375795591,1753749061293,-156.02,0.00022739,2]
[375795593,1753749061303,-571.78,0.00022739,2]
[375795595,1753749061313,-536.76,0.00022739,2]
[375795597,1753749061322,-460.0,0.00022739,2]
[375795599,1753749061331,-460.0,0.00022739,2]
[375795601,1753749061341,-573.23,0.00022739,2]
[375795603,1753749061350,-460.0,0.00022739,2]
[375795605,1753749061359,-4491.51,0.00022739,2]
[375795607,1753749061368,-460.0,0.00022739,2]
[375795609,1753749061381,-460.0,0.00022739,2]
[375795611,1753749061390,-603.52,0.00022739,2]
[375795612,1753749061399,-579.93,0.00022739,2]
[375795614,1753749061410,-460.0,0.00022739,2]
[375795616,1753749061419,-296.431544,0.00022739,7]
[375795618,1753749061429,-296.431544,0.00022739,7]
[375795620,1753749061438,-1616.26,0.00022739,2]
[375795622,1753749061448,-460.0,0.00022739,2]
[375795624,1753749061457,-460.0,0.00022739,2]
[375795625,1753749061467,-503.97,0.00022739,2]
[375795627,1753749061476,-255.834975,0.00022739,7]
[375795629,1753749061485,-255.834975,0.00022739,7]
[375795631,1753749061495,-460.0,0.00022739,2]
[375795633,1753749061504,-285.165362,0.00022739,7]
[375795635,1753749061514,-1896.92,0.00022739,2]
[375795637,1753749061523,-1815.21,0.00022739,2]
[375795639,1753749061533,-285.165362,0.00022739,7]
[375795641,1753749061543,-1344.16,0.00022739,2]
[375795643,1753749061552,-612.46,0.00022739,2]
[375795645,1753749061562,-497.08,0.00022739,2]
[375795647,1753749061571,-460.0,0.00022739,2]
[375795649,1753749061581,-761.04,0.00022739,2]
[375795651,1753749061591,-460.0,0.00022739,2]
[375795653,1753749061600,-552.9,0.00022739,2]
[375795655,1753749061610,-511.35,0.00022739,2]
[375795657,1753749061619,-460.0,0.00022739,2]
[375795659,1753749061628,-460.0,0.00022739,2]
[375795660,1753749061638,-1539.51,0.00022739,2]
[375795662,1753749061647,-460.0,0.00022739,2]
[375795664,1753749061657,-460.0,0.00022739,2]
[375795666,1753749061666,-460.0,0.00022739,2]
[375795668,1753749061676,-546.86,0.00022739,2]
[375795670,1753749061685,-1287.37,0.00022739,2]
[375795672,1753749061695,-564.43,0.00022739,2]
[375795674,1753749061704,-996.48,0.00022739,2]
[375795676,1753749061714,-509.59,0.00022739,2]
[375795678,1753749061723,-463.39,0.00022739,2]
[375795680,1753749061733,-797.7,0.00022739,2]
[375795682,1753749061742,-460.0,0.00022739,2]
[375795684,1753749061752,-492.3,0.00022739,2]
[375795686,1753749061761,-388.99381343,0.00022739,2]
[375795688,1753749061771,-460.0,0.00022739,2]
[375795690,1753749061781,-460.0,0.00022739,2]
[375795692,1753749061790,-1211.72,0.00022739,2]
[375795694,1753749061799,-460.0,0.00022739,2]
[375795696,1753749061809,-4726.56,0.00022739,2]
[375795698,1753749061822,-502.36,0.00022739,2]
[375795700,1753749061832,-586.6,0.00022739,2]
[375795701,1753749061841,-574.57,0.00022739,2]
[375795703,1753749061850,-1800.69,0.00022739,2]
[375795705,1753749061861,-509.81,0.00022739,2]
[375795707,1753749061871,-1359.25,0.00022739,2]
[375795709,1753749061881,-490.06,0.00022739,2]
[375795711,1753749061891,-460.0,0.00022739,2]
[375795713,1753749061902,-210.378976,0.00022739,7]
[375795715,1753749061912,-210.378976,0.00022739,7]
[375795717,1753749061922,-1792.58,0.00022739,2]
[375795719,1753749061932,-405.0,0.0002274,2]
[375795721,1753749061941,-230.01,0.00022877,2]
[375795723,1753749061952,-11665.39837505,0.000229,7]
[375795725,1753749061962,-151.0,0.00022941,7]
[375795727,1753749061971,-151.0,0.00022941,7]
[375795729,1753749061981,-151.0,0.00022941,7]
[375795731,1753749061990,-152.841085,0.00022941,7]
[375795733,1753749061999,-151.0,0.00022941,7]
[375795735,1753749062009,-151.0,0.00023,7]
[375795737,1753749062018,-151.0,0.00023,7]
[375795738,1753749062028,-151.0,0.00023,7]
[375795740,1753749062037,-151.0,0.00023,7]
[375795742,1753749062046,-151.0,0.00023,7]
[375795744,1753749062055,-1428.45,0.00023,2]
[375795746,1753749062065,-151.0,0.00023,7]
[375795748,1753749062074,-49381.50782039,0.00023,14]
[375795751,1753749062089,-1967.33134317,0.00023,2]
[375795753,1753749062099,-6812.11456405,0.00023,2]
[375795770,1753749062261,-2997.9499424,0.00023,2]
[375795772,1753749062271,-347.89479617,0.00023,2]
[375795774,1753749062281,-53062.92266935,0.00023,2]
[375795776,1753749062290,-1337.60374116,0.00023,2]
[375795778,1753749062299,-151.0,0.00023,7]
[375795780,1753749062309,-160.0,0.00023,2]
[375795782,1753749062318,-273.472572,0.00023,7]
[375795784,1753749062328,-273.472572,0.00023,7]
[375795786,1753749062338,-210.378976,0.00023,7]
[375795788,1753749062347,-210.378976,0.00023,7]
[375795790,1753749062356,-151.0,0.00023013,7]
[375795792,1753749062366,-163.747152,0.00023013,7]
[375795794,1753749062375,-163.747152,0.00023013,7]
[375795796,1753749062385,-151.0,0.00023013,7]
[375795798,1753749062395,-571.78,0.00023013,2]
[375795800,1753749062404,-536.76,0.00023013,2]
[375795802,1753749062414,-460.0,0.00023013,2]
[375795804,1753749062423,-460.0,0.00023013,2]
[375795806,1753749062433,-573.23,0.00023013,2]
[375795808,1753749062446,-460.0,0.00023013,2]
[375795810,1753749062455,-4491.51,0.00023013,2]
[375795812,1753749062464,-373.48192095,0.00023013,2]
[375795814,1753749062474,-460.0,0.00023013,2]
[375795816,1753749062483,-603.52,0.00023013,2]
[375795818,1753749062492,-579.93,0.00023013,2]
[375795819,1753749062502,-460.0,0.00023013,2]
[375795821,1753749062511,-1616.26,0.00023013,2]
[375795823,1753749062520,-460.72,0.00023013,2]
[375795825,1753749062529,-460.0,0.00023013,2]
[375795827,1753749062539,-503.97,0.00023013,2]
[375795829,1753749062549,-460.0,0.00023013,2]
[375795831,1753749062559,-1896.92,0.00023013,2]
[375795833,1753749062569,-1815.21,0.00023013,2]
[375795835,1753749062579,-1344.16,0.00023013,2]
[375795837,1753749062588,-612.46,0.00023013,2]
[375795839,1753749062599,-497.08,0.00023013,2]
[375795841,1753749062608,-460.0,0.00023013,2]
[375795843,1753749062619,-761.04,0.00023013,2]
[375795845,1753749062629,-460.0,0.00023013,2]
[375795848,1753749062639,-552.9,0.00023013,2]
[375795850,1753749062649,-511.35,0.00023013,2]
[375795852,1753749062659,-460.0,0.00023013,2]
[375795854,1753749062669,-460.0,0.00023013,2]
[375795856,1753749062679,-1539.51,0.00023013,2]
[375795857,1753749062691,-460.0,0.00023013,2]
[375795860,1753749062705,-460.0,0.00023013,2]
[375795862,1753749062715,-460.0,0.00023013,2]
[375795877,1753749062859,-546.86,0.00023013,2]
[375795879,1753749062871,-1287.37,0.00023013,2]
[375795881,1753749062880,-564.43,0.00023013,2]
[375795883,1753749062893,-996.48,0.00023013,2]
[375795885,1753749062903,-509.59,0.00023013,2]
[375795887,1753749062913,-463.39,0.00023013,2]
[375795889,1753749062923,-797.7,0.00023013,2]
[375795891,1753749062932,-460.0,0.00023013,2]
[375795893,1753749062944,-492.3,0.00023013,2]
[375795895,1753749062954,-460.0,0.00023013,2]
[375795897,1753749062965,-174.77639474,0.00023013,2]
[375795899,1753749062974,-1211.72,0.00023013,2]
[375795901,1753749062984,-460.0,0.00023013,2]
[375795903,1753749062994,-4726.56,0.00023013,2]
[375795906,1753749063005,-502.36,0.00023013,2]
[375795907,1753749063014,-586.6,0.00023013,2]
[375795909,1753749063024,-574.57,0.00023013,2]
[375795911,1753749063034,-1800.69,0.00023013,2]
[375795913,1753749063044,-509.81,0.00023013,2]
[375795916,1753749063054,-1359.25,0.00023013,2]
[375795918,1753749063064,-490.06,0.00023013,2]
[375795920,1753749063074,-460.0,0.00023013,2]
[375795922,1753749063083,-1792.58,0.00023013,2]
[375795924,1753749063093,-724.0,0.0002314,2]
[375795926,1753749063102,-427.1,0.00023158,5]
[375795927,1753749063112,-200.560759,0.00023158,7]
[375795929,1753749063123,-151.0,0.00023158,7]
[375795932,1753749063134,-676.424315,0.00023158,7]
[375795934,1753749063145,-676.424315,0.00023158,7]
[375795936,1753749063155,-724.0,0.00023193,2]
[375795938,1753749063165,-196.75698771,0.00023197,2]
[375795940,1753749063175,-487.50545559,0.000232,2]
[375795942,1753749063186,-999.999999,0.0002327,2]
[375795944,1753749063197,-285.10850752,0.00023287,2]
[375795946,1753749063208,-151.0,0.00023287,7]
[375795948,1753749063219,-151.0,0.00023287,7]
[375795950,1753749063229,-151.0,0.00023287,7]
[375795952,1753749063239,-571.78,0.00023287,2]
[375795954,1753749063249,-536.76,0.00023287,2]
[375795956,1753749063258,-460.0,0.00023287,2]
[375795958,1753749063269,-460.0,0.00023287,2]
[375795960,1753749063278,-573.23,0.00023287,2]
[375795962,1753749063288,-460.0,0.00023287,2]
[375795964,1753749063297,-4491.51,0.00023287,2]
[375795966,1753749063307,-460.0,0.00023287,2]
[375795968,1753749063317,-579.93,0.00023287,2]
[375795970,1753749063327,-603.52,0.00023287,2]
[375795972,1753749063336,-495.74,0.00023287,2]
[375795974,1753749063346,-1616.26,0.00023287,2]
[375795976,1753749063356,-460.0,0.00023287,2]
[375795977,1753749063366,-503.97,0.00023287,2]
[375795979,1753749063377,-460.0,0.00023287,2]
[375795981,1753749063387,-1896.92,0.00023287,2]
[375795983,1753749063397,-1815.21,0.00023287,2]
[375795986,1753749063407,-1344.16,0.00023287,2]
[375795988,1753749063417,-612.46,0.00023287,2]
[375795989,1753749063427,-497.08,0.00023287,2]
[375795992,1753749063437,-460.0,0.00023287,2]
[375795994,1753749063449,-761.04,0.00023287,2]
[375795996,1753749063459,-460.0,0.00023287,2]
[375795998,1753749063470,-552.9,0.00023287,2]
[375796000,1753749063481,-511.35,0.00023287,2]
[375796002,1753749063491,-460.0,0.00023287,2]
[375796004,1753749063501,-460.0,0.00023287,2]
[375796006,1753749063511,-1539.51,0.00023287,2]
[375796008,1753749063521,-460.0,0.00023287,2]
[375796010,1753749063531,-460.0,0.00023287,2]
[375796012,1753749063541,-546.86,0.00023287,2]
[375796014,1753749063551,-1287.37,0.00023287,2]
[375796016,1753749063562,-564.43,0.00023287,2]
[375796018,1753749063573,-996.48,0.00023287,2]
[375796020,1753749063583,-509.59,0.00023287,2]
[375796022,1753749063593,-463.39,0.00023287,2]
[375796024,1753749063603,-797.7,0.00023287,2]
[375796026,1753749063613,-460.0,0.00023287,2]
[375796028,1753749063622,-492.3,0.00023287,2]
[375796030,1753749063632,-460.0,0.00023287,2]
[375796032,1753749063642,-1211.72,0.00023287,2]
[375796034,1753749063651,-460.0,0.00023287,2]
[375796036,1753749063661,-4726.56,0.00023287,2]
[375796038,1753749063671,-502.36,0.00023287,2]
[375796040,1753749063680,-586.6,0.00023287,2]
[375796042,1753749063693,-574.57,0.00023287,2]
[375796044,1753749063702,-1800.69,0.00023287,2]
[375796046,1753749063712,-509.81,0.00023287,2]
[375796048,1753749063724,-1359.25,0.00023287,2]
[375796050,1753749063734,-490.06,0.00023287,2]
[375796052,1753749063744,-460.0,0.00023287,2]
[375796054,1753749063756,-1792.58,0.00023287,2]
[375796056,1753749063767,-500.0,0.00023363,2]
[375796058,1753749063777,-200.0,0.00023367,15]
[375796060,1753749063786,-200.0,0.00023367,15]
[375796062,1753749063796,-200.0,0.00023367,15]
[375796064,1753749063807,-200.0,0.00023367,15]
[375796066,1753749063821,-200.0,0.00023367,15]
[375796068,1753749063831,-200.0,0.00023367,15]
[375796070,1753749063841,-366.0,0.00023367,15]
[375796072,1753749063851,-1126.60340077,0.000234,2]
[375796074,1753749063862,-724.0,0.00023429,2]
[375796076,1753749063872,-474.184316,0.00023474,2]
[375796078,1753749063882,-5914.41,0.000235,7]
[375796080,1753749063895,-151.0,0.00023561,7]
[375796082,1753749063906,-151.0,0.00023561,7]
[375796084,1753749063916,-151.0,0.00023561,7]
[375796086,1753749063926,-151.0,0.00023561,7]
[375796088,1753749063936,-571.78,0.00023561,2]
[375796090,1753749063946,-536.76,0.00023561,2]
[375796092,1753749063956,-160.457064,0.00023561,7]
[375796094,1753749063966,-151.0,0.00023561,7]
[375796096,1753749063975,-460.0,0.00023561,2]
[375796098,1753749063986,-460.0,0.00023561,2]
[375796100,1753749063995,-573.23,0.00023561,2]
[375796102,1753749064005,-460.0,0.00023561,2]